Cogmind - Beta 13 @@@ ROGUE MODE // 2024.07.28 @ 13:58:21 Player: Noggity Result: Destroyed by G-34 Mercenary with Small Laser Performance ------------- Evolutions (1) 500 Regions Visited (2) 400 Robots Destroyed (25) 125 Value Destroyed (690) 690 Prototype IDs (1) 20 Alien Tech Used (0) 0 Bonus (0) 0 TOTAL SCORE: 1735 Bonus ------- None Cogmind --------- Core Integrity 0/400 Matter 258/300 Energy 99/100 System Corruption 5% Temperature Cool (6) Movement Core (100) Ox1 Location -9/Materials Parts ------- > --- POWER (1) -------- (None) > --- PROPULSION (3) --- (None) > --- UTILITY (3) ------ (None) > --- WEAPON (2) ------- Autogun Mini Grenade Launcher > --- INVENTORY (5) ---- High-powered Tractor Beam Ion Cannon Axe Peak State ------------ > --- POWER ------------ Improved Ion Engine > --- PROPULSION ------- Aluminum Leg Aluminum Leg Aluminum Leg > --- UTILITY ---------- Improved Heat Sink High-capacity Storage Unit System Shield > --- WEAPON ----------- Ion Cannon Axe > --- INVENTORY -------- Improved Ion Engine Improved Ion Engine Aluminum Leg Aluminum Leg Heat Sink Large Matter Pod Advanced Visual Processing Unit Shield Generator System Shield Tractor Beam High-powered Tractor Beam Ion Cannon Ion Cannon Ion Cannon Autogun Rocket Launcher Axe Axe Axe [Rating: 22] Favorites ----------- Power Ion Engine Engine Ion Engine Propulsion Aluminum Leg Treads Light Treads Leg Aluminum Leg Utility High-capacity Storage Unit Device Improved Heat Sink Storage High-capacity Storage Unit Hackware System Shield Weapon Ion Cannon Energy Gun Advanced Beam Rifle Energy Cannon Ion Cannon Ballistic Gun Assault Rifle Launcher Mini Grenade Launcher Slashing Weapon Axe Build | -11 -10 -9 ------- Run | Yrd Mat Mat Slots Evolved 2 | . . 2 Power . | . . . Propulsion 1 | . . 1 Utility 1 | . . 1 Weapon . | . . . Parts Attached 43 | 8 11 24 Power 5 | 2 . 3 Engine 5 | 2 . 3 Core . | . . . Reactor . | . . . Propulsion 11 | 2 4 5 Treads 2 | . 2 . Leg 9 | 2 2 5 Wheel . | . . . Hover . | . . . Flight . | . . . Utility 14 | 2 7 5 Device 6 | 1 2 3 Storage 7 | 1 5 1 Processor . | . . . Hackware 1 | . . 1 Protection . | . . . Artifact . | . . . Weapon 13 | 2 . 11 Energy Gun 3 | . . 3 Energy Cannon 3 | . . 3 Ballistic Gun 4 | 2 . 2 Ballistic Cannon . | . . . Launcher 1 | . . 1 Special Weapon . | . . . Impact Weapon . | . . . Slashing Weapon 2 | . . 2 Piercing Weapon . | . . . Special Melee Weapon . | . . . Unidentified Prototypes 1 | . . 1 Parts Lost 8 | . . 8 Power 2 | . . 2 Propulsion 5 | . . 5 Utility 1 | . . 1 Weapon . | . . . Highest Loss Streak 6 | . . 6 To Critical Strikes . | . . . Average Slot Usage (%) 94 | . 97 93 Engine 11 | . 14 10 Leg 29 | . 27 29 Device 13 | . 11 14 Storage 11 | . 14 10 Hackware 5 | . . 6 Energy Gun 2 | . . 3 Energy Cannon 7 | . . 9 Ballistic Gun 6 | . 28 1 Slashing Weapon 5 | . . 6 Naked Turns 35 | . . 35 Heaviest Build 58 | 14 49 58 Greatest Support 40 | 20 40 30 Greatest Overweight (x) 2 | 1 2 2 Average Overweight (x) . | . . . Largest Inventory Capacity 25 | 8 25 20 Average Capacity 15 | 6 8 17 Most Carried 20 | 6 9 20 Average Carried 13 | 3 7 15 Final Capacity 8 | 8 8 5 Final Carried 8 | 6 8 3 Class Distribution -------------------- 63% | Mutant 36% | Scavenger-Mutant Dominant Class ---------------- Mutant | -10/Materials Mutant | -9/Materials Resources | -11 -10 -9 ----------- Run | Yrd Mat Mat Matter Collected 881 | 253 189 439 Remotely 159 | . . 159 Salvage Created 984 | 12 189 783 Parts 56 | 4 12 40 Haulers Intercepted . | . . . Recyclers Shooed 1 | . 1 . Parts Field Recycled . | . . . Retrieved Matter . | . . . Parts Self-Destructed . | . . . Prevented . | . . . Kills | -11 -10 -9 ------- Run | Yrd Mat Mat Combat Hostiles Destroyed 15 | . 3 12 Melee 5 | . . 5 Guns 4 | . 3 1 Cannons 5 | . . 5 AOE 1 | . . 1 Classes Destroyed 8 | 1 2 5 Worker 3 | . . 3 Builder 1 | . . 1 Tunneler 1 | 1 . . Recycler 3 | . 1 2 Operator 1 | . . 1 Watcher 1 | . . 1 Grunt 9 | . 3 6 Sentry 6 | . . 6 Best Kill Streak 5 | 1 2 5 Combat Bots Only 3 | . 1 3 Max Kills in Single Turn 1 | 1 1 1 Gunslinging . | . . . Exploded 1 | . . 1 Melee 1 | . . 1 Uniques/NPCs Destroyed . | . . . Combat | -11 -10 -9 -------- Run | Yrd Mat Mat Hostile Shots Fired 157 | . 19 138 Missed 40 | . 5 35 Damage Taken 1525 | . 177 1348 Core 445 | . 38 407 Absorbed by Shields 39 | . . 39 Core Remaining (%) 92 | 100 84 . Volleys Fired 47 | 2 13 32 Largest 2 | 2 2 2 Hottest 121 | 40 40 121 Shots Fired 75 | 4 26 45 Gun 43 | 4 26 13 Cannon 29 | . . 29 Launcher 3 | . . 3 Special . | . . . Kinetic 33 | 4 26 3 Thermal 39 | . . 39 Explosive 3 | . . 3 Electromagnetic . | . . . Robot Hit Streak 6 | 1 5 6 Robot Miss Streak 3 | 1 1 3 Penetration Max . | . . . Secondary Targets . | . . . Shots Hit Robots 71 | 1 19 51 Core Hits 31 | 1 9 21 Critical Kills . | . . . Critical Parts Destroyed . | . . . Critical Strikes . | . . . Melee Attacks 32 | . . 32 Impact . | . . . Slashing 32 | . . 32 Piercing . | . . . Sneak Attacks 9 | . . 9 Combat Hostiles . | . . . Follow-up Attacks . | . . . Damage Inflicted 1979 | 16 188 1775 Guns 321 | 16 188 117 Cannons 406 | . . 406 Explosions 55 | . . 55 Melee 1197 | . . 1197 Ramming . | . . . Kinetic 221 | 16 188 17 Thermal 506 | . . 506 Explosive 55 | . . 55 Electromagnetic . | . . . Impact . | . . . Slashing 1197 | . . 1197 Piercing . | . . . Highest Corruption 5 | . . 5 Average Corruption 5 | . . 5 Corruption Purged . | . . . Corruption Blocked . | . . . Effects 39 | . . 39 Message Errors 9 | . . 9 Matter Fused 10 | . . 10 Heat Flow Errors 10 | . . 10 Energy Discharges 1 | . . 1 Parts Rejected 1 | . . 1 Data Loss (minor) 3 | . . 3 Data Loss (major) 2 | . . 2 Misfires 2 | . . 2 Alerts 1 | . . 1 Overload Shots . | . . . Overflow Damage 148 | . . 148 Projectiles . | . . . Explosions . | . . . Melee 148 | . . 148 Knockbacks . | . . . Impact . | . . . Kinetic . | . . . Secondary . | . . . Self-Inflicted Damage 31 | . . 31 Shots 2 | . . 2 Rammed . | . . . Targets Rammed . | . . . Kicked . | . . . Crushed . | . . . Highest Temperature 254 | . 12 254 Average Temperature 89 | . 8 100 Received Heat Transfer 643 | . 99 544 Siege Activations . | . . . Robots Corrupted . | . . . Combat Hostiles . | . . . Parts Fried . | . . . Impact Corruptions . | . . . Robots Melted . | . . . Combat Hostiles . | . . . Parts Melted . | . . . Heat Transferred 851 | . . 851 Parts Sabotaged . | . . . Parts Stolen . | . . . Parts Stripped . | . . . Power Chain Reactions . | . . . Alert | -11 -10 -9 ------- Run | Yrd Mat Mat Peak Influence 201 | 5 145 201 Initial 61 | . 3 61 Average 72 | 1 54 83 Maximum Alert Level 1 | . . 1 Low Security (%) 99 | 100 100 99 Level 1 . | . . . Level 2 . | . . . Level 3 . | . . . Level 4 . | . . . Level 5 . | . . . High Security . | . . . Max Security . | . . . Squads Dispatched 4 | . . 4 Investigation 3 | . . 3 Extermination . | . . . Reinforcement 1 | . . 1 Assault . | . . . Garrison . | . . . Intercept . | . . . Searches Triggered . | . . . Construction Impeded . | . . . Haulers Reinforced . | . . . Active Scanning Responses . | . . . Cargo Convoy Interrupts . | . . . Stealth | -11 -10 -9 --------- Run | Yrd Mat Mat Distress Signals 4 | . . 4 Communications Jammed . | . . . Distress Signals . | . . . Times Spotted 40 | . 10 30 Peak Tracking Total 8 | . 3 8 Tactical Retreats 6 | . 3 3 Traps | -11 -10 -9 ------- Run | Yrd Mat Mat Traps Triggered 1 | . . 1 Indirectly . | . . . Trap Hack Attempts . | . . . Triggered . | . . . Disarmed . | . . . Reprogrammed . | . . . Reused . | . . . Traps Extracted . | . . . Installed . | . . . Triggered . | . . . Machines | -11 -10 -9 ---------- Run | Yrd Mat Mat Machines Disabled 1 | . . 1 Max in Single Turn 1 | . . 1 Machines Repaired . | . . . Machines Dismantled . | . . . Machines Sabotaged . | . . . Overloaded Fab Kills . | . . . Hacking | -11 -10 -9 --------- Run | Yrd Mat Mat Machines Accessed 8 | . 2 6 Terminals 6 | . 2 4 Fabricators . | . . . Repair Stations . | . . . Recycling Units 1 | . . 1 Scanalyzers 1 | . . 1 Garrison Access . | . . . Total Hacks 29 | . 4 25 Successful 22 | . 3 19 Failed 7 | . 1 6 Catastrophic 2 | . . 2 Database Lockouts . | . . . Manual 7 | . 3 4 Terminals 12 | . 4 8 Fabricators . | . . . Repair Stations . | . . . Recycling Units 2 | . . 2 Scanalyzers 15 | . . 15 Garrison Access . | . . . Terminal Hacks 2 | . . 2 Alert Level 1 | . . 1 Recall Reinforcements 1 | . . 1 Fabricator Hacks . | . . . Repair Station Hacks . | . . . Recycling Unit Hacks . | . . . Scanalyzer 15 | . . 15 Insert Component 7 | . . 7 Analyze 8 | . . 8 Garrison Access Hacks . | . . . Unauthorized Hacks 5 | . 3 2 Terminals 5 | . 3 2 Track 1 | . 1 . Botnet 4 | . 2 2 Fabricators . | . . . Repair Stations . | . . . Recycling Units . | . . . Scanalyzers . | . . . Garrison Access . | . . . Data Cores Recovered . | . . . Used . | . . . Hacking Detections 7 | . 2 5 Full Trace Events 2 | . . 2 Feedback Events . | . . . Feedback Blocked . | . . . Robot Schematics Acquired . | . . . Robots Built . | . . . Authchips . | . . . Time . | . . . Total Robot Build Rating . | . . . Part Schematics Acquired 7 | . . 7 Parts Built . | . . . Authchips . | . . . Time . | . . . Total Part Build Rating . | . . . Parts Repaired . | . . . Time . | . . . Parts Recycled . | . . . Recycled Matter . | . . . Retrieved Matter . | . . . Retrieved Components . | . . . Parts Scanalyzed 7 | . . 7 Part Schematics Acquired 7 | . . 7 Parts Damaged . | . . . Bothacking | -11 -10 -9 ------------ Run | Yrd Mat Mat Used RIF Installer . | . . . Robots Hacked . | . . . Non-combat . | . . . Combat . | . . . Robot Hacks Applied . | . . . Relay Couplers Released . | . . . Fabnet Peak Effective % . | . . . Robots Rewired . | . . . Allies Hacked . | . . . Hacks Repelled . | . . . Allies | -11 -10 -9 -------- Run | Yrd Mat Mat Total Allies . | . . . Largest Group . | . . . Highest-Rated Group . | . . . Highest-Rated Ally . | . . . Total Orders . | . . . Ally Attacks . | . . . Total Damage . | . . . Kills . | . . . Allies Corrupted . | . . . Allies Melted . | . . . Intel | -11 -10 -9 ------- Run | Yrd Mat Mat Robot Analysis Total . | . . . Derelict Logs Recovered . | . . . Drone Launches . | . . . Drone Recoveries . | . . . Exploration | -11 -10 -9 ------------- Run | Yrd Mat Mat Turns Passed 1739 | 113 323 1303 Spaces Moved 868 | 81 173 614 Core 95 | 17 . 78 Treads 1 | . 1 . Legs 772 | 64 172 536 Wheels . | . . . Hover . | . . . Flight . | . . . Fastest Speed 50 | 50 120 50 Average Speed 153 | 107 121 167 Slowest Speed 260 | 120 260 260 Overloaded Moves . | . . . Propulsion Burnouts . | . . . Robots Hopped . | . . . Cave-ins Triggered . | . . . Exploration Rate (%) 30 | 6 22 63 Regions Visited 2 Branch Regions . Pre-discovered Areas . | . . . Known Exits Taken . | . . . Unknown Exits Taken 2 | 1 1 . Scrap Searched . | . . . Spaces Dug . | . . . Terrain Destroyed 24 | . . 24 Melee . | . . . Projectile 2 | . . 2 AOE 22 | . . 22 Terrain Rammed . | . . . Walls Destroyed . | . . . Machines Disabled . | . . . Actions | -11 -10 -9 --------- Run | Yrd Mat Mat Total 1150 | 100 261 789 Wait 92 | 3 48 41 Move 866 | 80 172 614 Hop . | . . . Pick Up 42 | 6 9 27 Fast Attach 10 | 7 . 3 Attach 10 | 1 1 8 Detach 2 | 1 . 1 Swap 23 | . 10 13 Drop 26 | . 8 18 Fire 47 | 2 13 32 Melee 32 | . . 32 Ram . | . . . Kick . | . . . Crush . | . . . Escape Stasis . | . . . Rewire . | . . . Trap . | . . . Miscellaneous . | . . . Route ------- -11/Scrapyard -10/Materials -9/Materials (discovered 1 exit: [*Mat]) History --------- Turn | Location | Event 8 | -11/Scrapyard | Discovered new exit (range 16) 114 | -11/Scrapyard | Entered Materials 323 | -10/Materials | Build established: Mutant 414 | -10/Materials | Discovered new exit (range 8) 437 | -10/Materials | Entered another Materials area 437 | -9/Materials | Evolved 2 slots: Propulsion x1, Utility x1 729 | -9/Materials | Build established: Scavenger-Mutant 1355 | -9/Materials | Build established: Mutant 1512 | -9/Materials | Core integrity fell below 50% 1684 | -9/Materials | Released all parts (4) 1687 | -9/Materials | Core integrity fell below 20% 1715 | -9/Materials | Lost 6 parts (2p3n1u) 1731 | -9/Materials | Discovered new exit (range 16) 1740 | -9/Materials | Destroyed by G-34 Mercenary with Small Laser Last Messages --------------- 01684_ Imp. Ion Engine destroyed. 01684_ System Shield destroyed. 01684_ Released Hcp. Storage Unit. 01684_ Released Axe. 01684_ Released Ion Cannon. 01684_ Released Shield Generator. 01698_ System corrupted: Heat flow error (+105). 01701_ Dropped Hpw. Tractor Beam. 01703_ Acquired Mni. Grenade Launcher. 01715_ T-07 Excavator is excavating. 01720_ System corrupted: Component data lost. 01727_ Y-45 Defender destroyed. 01728_ The unstable cave ceiling collapses. 01731_ EXIT=FOUND 01733_ Acquired 25 matter. 01736_ QC=G1PN:K#O>QM7BQ=BCD:AGSZJRIKBUG 01740_ Triggered Alarm Trap. 01740_ An alarm sounds. 01740_ ALERT: Alarm triggered, dispatching investigation squad. Map ----- +----------------------------------------------------+ | ???????????????# """ """ + | | ???????????????# """ """ # | | ???????????????# ### | | ???????????????# #?# """ | | ???????????????# #?# """ | | ???????????????##+########?# """ | | ????????????????# #????????# | | ??????????????### #????????# | | ??????????????# # ########?# | | ???????????????# | | ???????????????## ########? | | ? ####???????####/###?????? | | ?? ???????# #??????#####+## | | ??""" ????### #?????????????? | | # """ ####### #?????????????? | | # """ # #?????????????? | | # #?????????????? | | ? """ #?????????????? | | ? """ #?????????????? | | # """ #?????????????? | | # t #?????????????? | | #" #?????????????? | | #T # # #?????????????? | | #" ## ## #?????????????? | | # ??# ## #?????????????? | | #####???# @ #########?????????????? | | ????????# #?????????????????????? | | ????????# #?????????????????????? | | ????????# #?????????????????????? | | ????????# #?????????????????????? | | ????????# #?????????????????????? | | ????????+ +?????????????????????? | | ????????# #?????????????????????? | | ????????#gg #?????????????????????? | | ????????# #??????????????????#### | | ????????#####??????????????????# | | ???????????????????????????????# "" | | ???????????????????????????????# "" | | ???????????????????????????????# "" | | ???????????????????????????????# | | ???????????????????????????????# "" | | ???????????????????????????????# "" | | ???????????????????????????????# "" | | ???????????????????????????????# | | ???????????????????????????????#### | | ??????????????????????????????????? | | ??????????????????????????????????? | | | | | | | +----------------------------------------------------+ Best States ------------- Heat Dissipation 42 Energy Generation 12 Energy Capacity 265 Matter Stores 300 Matter Capacity 300 Sight Range 16 Terrain Scan Density 10 Evasion (%) 55 Defensive Hacking 10 Item Schematics ----------------- Aluminum Leg | -9/Materials | Scanalyzed Imp. Ion Engine | -9/Materials | Scanalyzed Rocket Launcher | -9/Materials | Scanalyzed Axe | -9/Materials | Scanalyzed Heat Sink | -9/Materials | Scanalyzed Hpw. Tractor Beam | -9/Materials | Scanalyzed Shield Generator | -9/Materials | Scanalyzed Robot Schematics ------------------ None Fabricated ------------ Nothing Alien Tech Used ----------------- None Achievements -------------- Use The Force Challenges ------------ None Game ------ Seed MissileSupersonicDatajack Manual? 0 Play Time 00:51:16 Cumulative 8.7 hours Start 2024.07.28 @ 13:02:53 End 2024.07.28 @ 13:58:21 Sessions 2 Manual Loads 0 Difficulty Rogue Special Mode None Game No. 7 Rogue 7 Adventurer 0 Explorer 0 Win Type - Total 0 Types 0/0/0/0/0/0/0/0/0 Lore% 10 Gallery% 15 Achievement% 16 Wizard Run 0 Options --------- Layout 2 ASCII 0 Keyboard 1 Movement Numpad Keybinds 0 Fullscreen 1 Font 24/Smallcaps Map View 50x44 Zoom Use 0% Tactical HUD 1 Map Filters NONE Filters NONE Steam 1 RUN: 691f8307-91fd-4521-b186-87f9bb601091